[Event "3rd VIZAG GM-Open 2022"]
[Site "Visakapatnam"]
[Date "2022.06.13"]
[Round "5.11"]
[White "Kaustuv, Kundu"]
[Black "Neelotpal, Das"]
[Result "1/2-1/2"]
[ECO "D45"]
[WhiteElo "2327"]
[BlackElo "2431"]
[Annotator "TA"]
[PlyCount "68"]
[EventDate "2022.06.13"]
[EventType "swiss"]
[EventCountry "IND"]
[SourceTitle "playchess.com"]
[Source "ChessBase"]
[SourceQuality "1"]
[TimeControl "5400+30"]

{[%evp 20,68,0,0,20,18,19,19,18,22,22,15,22,16,30,29,24,0,12,0,24,0,23,21,20,7,12,6,14,0,0,0,51,14,52,45,48,51,40,0,70,-13,-10,-27,-19,-458,0,0,0,0,0]} 1. Nf3 {[%emt 0:00:04]} d5 {[%emt 0:00:42]} 2. e3 {[%emt 0:00:07]} Nf6 {[%emt 0:00:40]} 3. c4 {[%emt 0:00:06]} e6 {[%emt 0:00:14]} 4. Nc3 {[%emt 0:00:28]} c6 {[%emt 0:02:28]} 5. b3 {[%emt 0:00:15]} Bd6 {[%emt 0:00:07]} 6. Bb2 {[%emt 0:00:08]} O-O {[%emt 0:05:27]} 7. d4 {[%emt 0:00:05]} Nbd7 {[%emt 0:00:17]} 8. Be2 {[%emt 0:00:06]} b6 {[%emt 0:01:13]} 9. O-O {[%emt 0:00:07]} Bb7 {[%emt 0:00:02]} 10. Qc2 {[%emt 0:00:09]} Qe7 {[%emt 0:00:37]} 11. Rad1 {[%emt 0:00:14]} Rac8 {[%emt 0:09:11] D45: Semi-Slav: 5 e3.} 12. e4 {[%emt 0:00:40]} Nxe4 {[%emt 0:00:15] has lost popularity (12...dxe4).} 13. Nxe4 {[%emt 0:00:06]} dxe4 {[%emt 0:00:02]} 14. Qxe4 {[%emt 0:00:08]} Nf6 {[%emt 0:01:09]} 15. Qc2 {[%emt 0:00:09] has lost popularity (15.Qh4).} Ba3 {[%emt 0:07:48]} 16. Ba1 {[%emt 0:02:44]} h6 {[%emt 0:00:26]} 17. Bd3 {[%emt 0:09:36]} Bb4 {[%emt 0:03:03]} 18. Bb2 {[%emt 0:12:07]} Ba3 {[%emt 0:06:00]} 19. Ba1 {[%emt 0:09:28]} Bb4 {[%emt 0:03:03]} 20. Bb2 {[%emt 0:13:03]} Ba3 {[%emt 0:04:24]} 21. Rfe1 {[%emt 0:00:09]} Bxb2 {[%emt 0:01:09]} 22. Qxb2 {[%emt 0:00:05] [#]} a5 $146 {[%emt 0:09:58]} ({Predecessor:} 22... Rfd8 23. Ne5 c5 24. dxc5 bxc5 25. Be2 Qc7 26. Bf3 Rxd1 27. Rxd1 Rd8 28. Rxd8+ Qxd8 29. Qe2 Qd4 30. g3 Ne4 31. Bxe4 Bxe4 32. Nf3 Qa1+ {½-½ (55) Ftacnik,L (2545)-Navara,D (2705) Czech Republic 2014}) 23. Ne5 {[%emt 0:04:52]} Rcd8 {[%emt 0:17:48]} 24. c5 {[%emt 0:05:29]} bxc5 {[%emt 0:03:25]} 25. Qa3 {[%emt 0:00:13][%csl LRa5,LRc5]} Nd7 {[%emt 0:08:04]} (25... Qc7 $11) 26. Bc4 {[%emt 0:05:13][%cal Oe5g6] Threatens to win with Ng6!} Qd6 {[%emt 0:04:25] [#] White must now prevent ...Nxe5.} 27. Nxf7 {[%emt 0:10:01]} Rxf7 {[%emt 0:00:39]} (27... Kxf7 $2 28. dxc5 (28. Rxe6 Qxe6 29. Bxe6+ Kxe6 $16) 28... Qf4 29. g3 $18 (29. Rxe6 $2 Ne5 $17)) 28. Rxe6 {[%emt 0:05:01]} Qf8 {[%emt 0:00:54] Strongly threatening ...Nb6.} (28... Qf4 $2 29. Re7 (29. Re2 Rdf8 $14) 29... Qxf2+ 30. Kh1 $18) 29. dxc5 {[%emt 0:09:09] And now Red6 would win.} Nxc5 {[%emt 0:02:34]} ({Black should try} 29... Ne5 $11 30. Rxd8 Qxd8) 30. Ree1 {[%emt 0:01:50] [#]} ({White should play} 30. Rxd8 $14 Qxd8 31. Re1 (31. Qxc5 $2 Qd1+ 32. Bf1 Ba6 $19)) 30... Rd5 $1 $11 {[%emt 0:01:32][%cal Of7f2]} 31. Qxa5 {[%emt 0:05:27]} (31. f3 Na6) 31... Rxf2 {[%emt 0:03:19][%cal Og8h8]} 32. b4 $2 {[%emt 0:02:50][%mdl 8192] [#]} (32. Rf1 $1 $11 Rxf1+ 33. Rxf1) 32... Qf4 $1 {[%emt 0:03:21]} 33. Qxc5 {[%emt 0:03:54][%mdl 64] Pin. Dancing on a razor blade.} ({Avoid the trap} 33. bxc5 $2 Qxc4 34. Rxd5 Qc2 35. Qd8+ Kh7 $19) 33... Rxg2+ {[%emt 0:00:10][%mdl 64] Decoy} 34. Kxg2 {[%emt 0:00:05]} Qg4+ {[%emt 0:00:18] Weighted Error Value: White=0.34/Black=0.33} 1/2-1/2

[Event "3rd VIZAG GM-Open 2022"]
[Site "Visakapatnam"]
[Date "2022.06.13"]
[Round "5.12"]
[White "Jain Kashish Manoj"]
[Black "Laxman, R.R."]
[Result "0-1"]
[ECO "C52"]
[WhiteElo "2271"]
[BlackElo "2420"]
[Annotator "TA"]
[PlyCount "90"]
[EventDate "2022.06.13"]
[EventType "swiss"]
[EventCountry "IND"]
[SourceTitle "playchess.com"]
[Source "ChessBase"]
[SourceQuality "1"]
[TimeControl "5400+30"]

{[%evp 14,90,-13,-12,0,-39,-38,-43,-45,-54,0,-14,-4,-1,0,-70,-66,-66,-66,-92,-93,-101,-91,-104,-84,-102,-97,-112,-107,-110,-102,-156,-138,-128,-101,-106,-79,-86,-76,-87,-38,-83,-32,-29,-18,-30,-6,-25,-30,-36,-10,-18,-11,-10,0,-152,-150,-138,-153,-149,0,-4,-10,-10,0,-175,-145,-528,-288,-281,-276,-772,-422,-444,-414,-660,-235,-29989,-29990]} 1. e4 {[%emt 0:00:10]} e5 {[%emt 0:00:06]} 2. Nf3 {[%emt 0:00:18]} Nc6 {[%emt 0:00:04]} 3. Bc4 {[%emt 0:01:35]} Bc5 {[%emt 0:00:07]} 4. b4 {[%emt 0:02:11]} Bxb4 {[%emt 0:00:15]} 5. c3 {[%emt 0:00:13]} Ba5 {[%emt 0:00:08]} 6. d4 {[%emt 0:01:15]} d6 {[%emt 0:00:14]} 7. Qb3 {[%emt 0:00:56]} Qd7 {[%emt 0:00:22]} 8. O-O {[%emt 0:00:33]} Bb6 $1 {[%emt 0:01:36] C52: Evans Gambit Accepted: 5 c3 Ba5.} 9. Nbd2 {[%emt 0:01:10] is currently scoring better than 9.Bb5.} (9. Bb5 $5 {[%cal Rd4d5]}) 9... Na5 {[%emt 0:01:22]} 10. Qc2 {[%emt 0:02:07]} f6 {[%emt 0:04:17] Black is slightly better.} 11. a4 {[%emt 0:13:07]} Nh6 {[%emt 0:01:08]} (11... Ne7 $1 $15) 12. Ba3 {[%emt 0:02:39]} Nf7 {[%emt 0:00:18] [#]} 13. Ba2 $146 {[%emt 0:12:59]} ({Predecessor:} 13. Bd5 Qe7 14. Bb4 c6 15. Ba2 O-O 16. Nh4 g6 17. Kh1 Be6 18. d5 Bd7 19. c4 {0-1 (43) Short,N (2706)-Filippov,A (2595) Kolkata 2009}) 13... Qe7 {[%emt 0:01:05]} 14. d5 {[%emt 0:14:31]} (14. Bb4 $11) 14... Bc5 {[%emt 0:06:50]} 15. Bb4 {[%emt 0:00:56]} b6 {[%emt 0:00:02]} 16. Bxa5 {[%emt 0:00:36]} bxa5 {[%emt 0:00:03]} 17. Nb3 {[%emt 0:02:17]} Bb6 {[%emt 0:00:10]} 18. c4 {[%emt 0:00:18]} Bd7 {[%emt 0:00:18]} 19. Bb1 {[%emt 0:05:53]} c5 {[%emt 0:03:01]} 20. dxc6 {[%emt 0:05:35]} Bxc6 {[%emt 0:00:45]} 21. Qc3 {[%emt 0:00:09]} Qc7 {[%emt 0:00:34]} 22. c5 {[%emt 0:03:06]} (22. Nfd2 $142) 22... dxc5 $17 {[%emt 0:00:06]} 23. Nfd2 {[%emt 0:03:03]} Rc8 {[%emt 0:06:47]} 24. Nc4 {[%emt 0:01:35]} O-O {[%emt 0:00:32]} 25. Nbxa5 {[%emt 0:05:16]} Bxa5 {[%emt 0:02:08]} 26. Nxa5 {[%emt 0:00:40]} Ba8 {[%emt 0:03:15]} (26... Nd6 $17 27. Ba2+ Kh8 28. Nxc6 Qxc6) 27. Rc1 {[%emt 0:03:30]} Rfd8 {[%emt 0:03:29]} (27... Kh8 $17 28. f3 Ng5) 28. f3 $15 {[%emt 0:01:26]} Kh8 {[%emt 0:02:50][%cal Of6f5]} 29. Ba2 {[%emt 0:01:12]} Qe7 {[%emt 0:00:07][%cal Of6f5]} 30. Qe3 {[%emt 0:01:12]} Nd6 {[%emt 0:02:45]} 31. Nb3 {[%emt 0:06:49]} Nb7 {[%emt 0:00:10]} (31... c4 $5 {[%cal Rc4b3]} 32. Nd2 f5 $15) 32. Rc4 {[%emt 0:01:35]} h6 {[%emt 0:01:56]} 33. Rac1 {[%emt 0:00:20]} Kh7 {[%emt 0:01:02]} 34. Nxc5 $2 {[%emt 0:05:26]} (34. h3 $11) 34... Nxc5 {[%emt 0:00:50]} 35. Rxc5 {[%emt 0:00:01]} Rxc5 {[%emt 0:01:53]} 36. Rxc5 {[%emt 0:00:02]} Rd4 {[%emt 0:00:24]} ({Better is} 36... Rd1+ $17 37. Kf2 f5) 37. Rc4 {[%emt 0:01:42]} Rd1+ {[%emt 0:01:38]} 38. Kf2 {[%emt 0:00:02]} Qd8 {[%emt 0:00:13] Hoping for ...Rd2+.} 39. Rc2 {[%emt 0:02:56] [#] Inhibits Rd2+.} (39. Bb3 $11 {and White is okay.} Rd3 40. Rc8) 39... f5 $1 $40 {[%emt 0:00:02][%mdl 128] ( -> ...Qh4+). Black wants a kill.} 40. g3 {[%emt 0:00:35][%mdl 8192] Inhibits Qh4. White does not recover from this.} (40. Ke2 $17 {was the crucial defense.}) 40... fxe4 {[%emt 0:00:21] White must now prevent ...Rd3.} 41. Be6 {[%emt 0:00:31] [#] And now Bf5+ would win.} Qf6 {[%emt 0:01:42] Inhibits Bf5+.} ({Weaker is} 41... exf3 42. Bf5+ g6 43. Qxa7+ Kh8 44. Bxg6 Rd2+ 45. Kf1 Rd1+ 46. Kf2 Rd2+ 47. Kf1 Rd1+ 48. Kf2 $11) 42. Bg4 {[%emt 0:00:19]} (42. Bc4) 42... Rd4 {[%emt 0:06:55]} 43. Rc8 {[%emt 0:00:42]} Bd5 {[%emt 0:01:46]} 44. Qa3 {[%emt 0:00:29]} (44. Rc5 $142 Rd3 45. Qe1) 44... e3+ $2 {[%emt 0:01:40]} (44... h5 45. Qf8 hxg4 46. Qxf6 gxf6 47. fxg4 Kg6) 45. Ke1 $2 {[%emt 0:00:31]} (45. Qxe3 $19 Rxg4 46. Qd3+ e4 47. Qxd5 Qxf3+ 48. Kg1 Rxg3+ 49. hxg3 Qxg3+ 50. Kh1 Qh3+ 51. Kg1 Qxc8 52. Qxe4+ Kg8 53. Qd5+ Kh8 54. Qe4) 45... Bxf3 {[%emt 0:00:46] Weighted Error Value: White=0.67/Black=0.42} 0-1

[Event "3rd VIZAG GM-Open 2022"]
[Site "Visakapatnam"]
[Date "2022.06.13"]
[Round "5.13"]
[White "Nguyen, Duc Hoa"]
[Black "Jubin Jimmy"]
[Result "1/2-1/2"]
[ECO "D37"]
[WhiteElo "2398"]
[BlackElo "2259"]
[Annotator "TA"]
[PlyCount "145"]
[EventDate "2022.06.13"]
[EventType "swiss"]
[EventCountry "IND"]
[SourceTitle "playchess.com"]
[Source "ChessBase"]
[SourceQuality "1"]
[TimeControl "5400+30"]

{[%evp 14,145,23,0,58,-39,-46,-37,-45,-33,-34,-49,-7,0,0,-1,8,8,0,0,14,7,22,27,25,0,0,0,0,0,0,0,0,0,0,0,14,8,12,15,14,8,15,7,8,6,10,8,8,0,8,8,12,9,16,16,16,16,16,0,0,0,0,0,0,0,36,36,36,36,36,36,36,36,36,36,36,15,24,0,0,0,0,0,0,0,0,0,0,0,0,0,0,0,0,0,0,0,0,0,0,0,0,0,0,0,0,0,0,0,0,0,0,0,0,0,0,0,0,0,0,0,0,0,0,0,0,0,0,0,0,0,0,0]} 1. d4 {[%emt 1:31:00]} Nf6 {[%emt 1:31:00]} 2. c4 {[%emt 0:00:30]} e6 {[%emt 0:00:30]} 3. Nf3 {[%emt 0:00:30]} d5 {[%emt 0:00:30]} 4. Nc3 {[%emt 0:00:30]} Be7 {[%emt 0:00:30]} 5. Bf4 {[%emt 0:00:30]} O-O {[%emt 0:00:30]} 6. e3 {[%emt 0:00:30]} Nbd7 {[%emt 0:00:30][%cal Bb8d7,Bd7e5,Be5g6,Bg6h4,Bh4f5,Bf5d4][%mdl 32]} 7. c5 {[%emt 0:00:30]} c6 {[%emt 0:00:30]} 8. h3 $1 {[%emt 0:00:30][%mdl 4] is now more promising than 8.Bd3.} Re8 {[%emt 0:00:30] D37: Queen's Gambit Declined: 5 Bf4.} ({Black should play} 8... a5 $11) 9. Bd3 {[%emt 0:00:30] [#]} (9. b4 $14) 9... Bxc5 $1 $15 {[%emt 0:00:30]} 10. dxc5 {[%emt 0:00:30]} e5 {[%emt 0:00:30] Black is slightly better.} 11. Nxe5 {[%emt 0:00:30]} Nxe5 {[%emt 0:00:30]} 12. Be2 {[%emt 0:00:30] [#]} Ng6 $146 {[%emt 0:00:30]} ({Predecessor:} 12... Ned7 13. b4 b6 14. cxb6 Qxb6 15. a3 Ba6 16. O-O Ne4 17. Rc1 Ndf6 18. Na4 Qb7 19. Bxa6 Qxa6 {½-½ (59) Spalir,J (2359)-Tica,S (2289) Nova Gorica 2015}) 13. Bd6 {[%emt 0:00:30]} Nh4 {[%emt 0:00:30]} 14. O-O {[%emt 0:00:30]} Nf5 {[%emt 0:00:30]} (14... Nd7 {looks sharper.} 15. Bd3 Qf6 16. Ne2 Ne5) 15. Bf4 {[%emt 0:00:30]} d4 {[%emt 0:00:30]} 16. exd4 {[%emt 0:00:30]} Nxd4 {[%emt 0:00:30]} 17. Bd3 {[%emt 0:00:30]} (17. Bc4 {feels hotter.} h6 18. Be3 Nf5 19. Qxd8 Rxd8 20. Rad1) 17... Bf5 {[%emt 0:00:30]} 18. Bxf5 {[%emt 0:00:30]} Nxf5 {[%emt 0:00:30] Pair of Knights!} 19. Qxd8 {[%emt 0:00:30]} (19. Qb3 {is more complex.} Qd4 20. Bg5 Nd7 21. Qxb7 Ne5 22. Rae1) 19... Raxd8 {[%emt 0:00:30]} 20. Bg5 {[%emt 0:00:30]} Nd4 {[%emt 0:00:30]} 21. Rfd1 {[%emt 0:00:30][%cal Bf1d1,Bd1d3,Bd3g3][%mdl 32]} h6 {[%emt 0:00:30]} 22. Bxf6 {[%emt 0:00:30]} gxf6 {[%emt 0:00:30]} 23. Kf1 {[%emt 0:00:30]} Kg7 {[%emt 0:00:30]} 24. Rd3 {[%emt 0:00:30]} Ne6 {[%emt 0:00:30]} 25. Rg3+ {[%emt 0:00:30]} Kf8 {[%emt 0:00:30]} 26. Ne4 {[%emt 0:00:30]} Ng5 {[%emt 0:00:30]} 27. Nd6 {[%emt 0:00:30]} Ne4 {[%emt 0:00:30]} 28. Nxe8 {[%emt 0:00:30]} Nxg3+ {[%emt 0:00:30]} 29. fxg3 {[%emt 0:00:30]} Kxe8 $11 {[%emt 0:00:30][%mdl 4096] Endgame KR-KR} 30. Re1+ {[%emt 0:00:30]} Kf8 {[%emt 0:00:30]} 31. Re4 {[%emt 0:00:30]} Rd5 {[%emt 0:00:30]} 32. Rb4 {[%emt 0:00:30]} Rxc5 {[%emt 0:00:30] Strongly threatening ...b5.} 33. Rxb7 {[%emt 0:00:30]} Rc2 {[%emt 0:00:30]} 34. g4 {[%emt 0:00:30]} a5 {[%emt 0:00:30]} 35. a4 {[%emt 0:00:30]} Kg7 {[%emt 0:00:30]} 36. Kg1 {[%emt 0:00:30]} Kg6 {[%emt 0:00:30]} 37. Kh2 {[%emt 0:00:30]} Rc4 {[%emt 0:00:30]} 38. b3 {[%emt 0:00:30]} Rc3 {[%emt 0:00:30]} 39. Kg1 {[%emt 0:00:30]} Rc2 {[%emt 0:00:30]} 40. Ra7 {[%emt 0:00:30]} Rb2 {[%emt 0:00:30]} 41. Rxa5 {[%emt 0:00:30]} Rxb3 {[%emt 0:00:30]} 42. Rc5 {[%emt 0:00:30]} Ra3 {[%emt 0:00:30]} 43. a5 {[%emt 0:00:30]} Ra2 {[%emt 0:00:30]} 44. Kf1 {[%emt 0:00:30]} Kg7 {[%emt 0:00:30]} 45. Rh5 {[%emt 0:00:30]} Rc2 {[%emt 0:00:30]} 46. Ke1 {[%emt 0:00:30]} Rxg2 {[%emt 0:00:30] The position is equal.} 47. Kd1 {[%emt 0:00:30]} Rh2 {[%emt 0:00:30]} 48. Kc1 {[%emt 0:00:30]} f5 {[%emt 0:00:30]} 49. Rxf5 {[%emt 0:00:30]} Rxh3 {[%emt 0:00:30]} 50. Kb2 {[%emt 0:00:30]} Re3 {[%emt 0:00:30]} 51. a6 {[%emt 0:00:30]} Re8 {[%emt 0:00:30]} 52. Kc3 {[%emt 0:00:30] [#] Threatens to win with Kb4.} Ra8 {[%emt 0:00:30]} 53. Ra5 {[%emt 0:00:30]} Kg6 {[%emt 0:00:30]} 54. Kd4 {[%emt 0:00:30]} ({Don't play} 54. a7 f5) 54... c5+ {[%emt 0:00:30]} 55. Kxc5 {[%emt 0:00:30]} f5 {[%emt 0:00:30]} 56. gxf5+ {[%emt 0:00:30]} Kxf5 {[%emt 0:00:30]} 57. Kb6+ {[%emt 0:00:30]} Kg4 {[%emt 0:00:30]} 58. Ra4+ {[%emt 0:00:30]} Kg3 {[%emt 0:00:30]} 59. Ra3+ {[%emt 0:00:30]} Kg4 {[%emt 0:00:30]} 60. Kb7 {[%emt 0:00:30]} Rh8 {[%emt 0:00:30]} 61. a7 {[%emt 0:00:30]} h5 {[%emt 0:00:30]} 62. Ra4+ {[%emt 0:00:30]} Kg3 {[%emt 0:00:30]} 63. Ra6 {[%emt 0:00:30]} Rh7+ {[%emt 0:00:30]} 64. Kc6 {[%emt 0:00:30]} Rxa7 {[%emt 0:00:30]} 65. Rxa7 {[%emt 0:00:30] aiming for Rg7+. KR-KP} h4 {[%emt 0:00:30]} 66. Rg7+ {[%emt 0:00:30]} Kf3 {[%emt 0:00:30]} (66... Kh3 {gets mated.} 67. Kd5 Kh2 68. Ke4 Kh1 69. Kf3 Kh2 70. Rd7 Kh1 71. Rh7 h3 72. Rxh3+ Kg1 73. Rh8 Kf1 74. Rh1#) 67. Rh7 {[%emt 0:00:30]} Kg3 {[%emt 0:00:30]} 68. Kd5 {[%emt 0:00:30]} h3 $1 {[%emt 0:00:30]} 69. Ke4 {[%emt 0:00:30]} h2 {[%emt 0:00:30]} 70. Ke3 {[%emt 0:00:30] Hoping for Rg7+.} Kg2 {[%emt 0:00:30]} 71. Rg7+ {[%emt 0:00:30]} Kf1 {[%emt 0:00:30]} 72. Rf7+ {[%emt 0:00:30]} Kg2 {[%emt 0:00:30]} 73. Rg7+ {[%emt 0:00:30] Weighted Error Value: White=0.07 (flawless) /Black=0.06 (flawless)} 1/2-1/2

[Event "3rd VIZAG GM-Open 2022"]
[Site "Visakapatnam"]
[Date "2022.06.13"]
[Round "5.14"]
[White "Gusain, Himal"]
[Black "Arshpreet Singh"]
[Result "1-0"]
[ECO "D35"]
[WhiteElo "2396"]
[BlackElo "1564"]
[Annotator "TA"]
[PlyCount "123"]
[EventDate "2022.06.13"]
[EventType "swiss"]
[EventCountry "IND"]
[SourceTitle "playchess.com"]
[Source "ChessBase"]
[SourceQuality "1"]
[TimeControl "5400+30"]

{[%evp 15,123,81,75,81,72,70,68,62,79,81,84,79,87,91,91,85,88,-6,-1,-8,-10,-4,-6,-13,-6,-10,-10,-8,0,0,0,0,0,0,0,0,12,12,12,12,12,12,12,20,70,60,82,95,88,78,78,78,78,78,78,78,78,78,101,105,176,78,198,59,138,141,2488,2120,2307,2067,1260,1383,3620,3443,6527,2672,29971,29972,29968,29970,29973,29974,29974,29975,29974,29975,29960,2413,29980,29981,29982,29983,29983,29984,29984,29983,29983,29984,29984,29984,29980,29959,29983,29984,29983,29984,29993,29991,29996,29992]} 1. d4 {[%emt 1:31:00]} Nf6 {[%emt 1:31:00]} 2. c4 {[%emt 0:00:30]} e6 {[%emt 0:00:30]} 3. Nc3 {[%emt 0:00:30]} d5 {[%emt 0:00:30]} 4. cxd5 {[%emt 0:00:30]} exd5 {[%emt 0:00:30]} 5. Bg5 {[%emt 0:00:30]} Be7 {[%emt 0:00:30]} 6. e3 {[%emt 0:00:30]} Bf5 {[%emt 0:00:30]} 7. Bxf6 {[%emt 0:00:30]} Bxf6 {[%emt 0:00:30]} 8. Qb3 {[%emt 0:00:30]} c6 {[%emt 0:00:30]} 9. Qxb7 {[%emt 0:00:30] D35: Queen's Gambit Declined: Exchange Variation.} Qb6 {[%emt 0:00:30]} 10. Qxb6 {[%emt 0:00:30]} (10. Qxa8 Qxb2 11. Nd1 Qb4+ 12. Ke2 Qc4+ 13. Kd2 (13. Kf3 Qxf1 14. Qxb8+ Kd7 $16) 13... Qb4+ 14. Ke2 (14. Kc1 Bd8 $17) 14... Qc4+ 15. Kf3 Qxf1 16. Qxb8+ Kd7 17. Qxa7+ (17. Qxh8 Be4+ 18. Kf4 Qxg2) (17. Qb7+ Kd6 $11) 17... Kc8 $14) 10... axb6 {[%emt 0:00:30]} 11. Kd2 {[%emt 0:00:30] [#] White is slightly better.} b5 $146 {[%emt 0:00:30]} ({Predecessor:} 11... O-O 12. Bd3 Be6 13. Nf3 c5 14. Nb5 Nc6 15. a3 Rac8 16. Rac1 Na5 17. Ke2 Bg4 {1-0 (63) Penalver,O (2247)-Bjorklund,T (2174) Lund 2021}) 12. Bd3 {[%emt 0:00:30]} Be6 {[%emt 0:00:30]} 13. Nf3 {[%emt 0:00:30]} b4 {[%emt 0:00:30]} 14. Ne2 {[%emt 0:00:30] White is more active.} c5 {[%emt 0:00:30]} 15. Bb5+ $1 {[%emt 0:00:30]} ({Much worse is} 15. dxc5 Bxb2 16. Nfd4 Bxa1 17. Rxa1 Ke7 $15) 15... Ke7 {[%emt 0:00:30]} 16. Nf4 {[%emt 0:00:30]} (16. dxc5 Bxb2 17. Nfd4 Bxa1 18. Rxa1 Nd7 $15) (16. a3 $16) 16... Ra5 $11 {[%emt 0:00:30]} 17. Be2 {[%emt 0:00:30]} cxd4 {[%emt 0:00:30]} (17... Nc6 {feels hotter.} 18. a4 bxa3 19. Rxa3 Rxa3 20. bxa3 cxd4 21. Bb5 dxe3+ 22. fxe3 Na5) 18. Nxd4 {[%emt 0:00:30]} Bxd4 {[%emt 0:00:30]} 19. exd4 {[%emt 0:00:30]} Nc6 {[%emt 0:00:30]} 20. Nd3 {[%emt 0:00:30]} Rha8 {[%emt 0:00:30]} (20... Kd6 {keeps more tension.} 21. Rhc1 Nxd4 22. Nxb4 Rb8) 21. Ke3 {[%emt 0:00:30]} (21. Rhc1 {is more complex.} Nxd4 22. Bd1 Rb8 23. Rc5) 21... Rxa2 {[%emt 0:00:30]} 22. Rxa2 {[%emt 0:00:30]} Rxa2 {[%emt 0:00:30]} 23. Rc1 {[%emt 0:00:30]} Na5 {[%emt 0:00:30]} 24. Nxb4 {[%emt 0:00:30]} Rxb2 {[%emt 0:00:30]} 25. Nd3 {[%emt 0:00:30]} Nc4+ {[%emt 0:00:30] [#]} 26. Rxc4 $1 {[%emt 0:00:30]} Rxe2+ {[%emt 0:00:30]} 27. Kxe2 {[%emt 0:00:30]} dxc4 {[%emt 0:00:30][%mdl 4096] Endgame KB-KN} 28. Nb4 {[%emt 0:00:30]} Kd6 {[%emt 0:00:30]} 29. Kd2 {[%emt 0:00:30]} f6 {[%emt 0:00:30]} (29... f5 $11) 30. Kc3 {[%emt 0:00:30]} Bf7 {[%emt 0:00:30]} 31. Nc2 {[%emt 0:00:30]} Kc6 {[%emt 0:00:30]} 32. Na3 {[%emt 0:00:30]} Bd5 {[%emt 0:00:30]} 33. g3 {[%emt 0:00:30]} ({Of course not} 33. Nxc4 $6 Bxg2 34. f4 Bf3 $11) 33... Be6 {[%emt 0:00:30]} 34. Nxc4 {[%emt 0:00:30]} Kd5 {[%emt 0:00:30]} 35. f3 {[%emt 0:00:30]} Kc6 {[%emt 0:00:30]} 36. Ne3 {[%emt 0:00:30]} Kd6 {[%emt 0:00:30]} 37. Kd3 {[%emt 0:00:30]} f5 {[%emt 0:00:30] [#]} (37... g6 $16) 38. h4 {[%emt 0:00:30]} (38. g4 $1 $18 g6 39. gxf5 gxf5 40. f4) 38... h6 {[%emt 0:00:30] [#]} (38... g6 $16 {was called for.}) 39. h5 {[%emt 0:00:30]} (39. g4 $1 $18 fxg4 40. fxg4) 39... f4 $14 {[%emt 0:00:30]} 40. gxf4 {[%emt 0:00:30] Black must now prevent Ke4.} Bf7 $2 {[%emt 0:00:30][%mdl 8192] A mistake that costs the game.} (40... Ba2 $16 41. Nc4+ Kd5) 41. Nf5+ $18 {[%emt 0:00:30]} Ke6 {[%emt 0:00:30]} 42. Ke4 {[%emt 0:00:30]} Kf6 {[%emt 0:00:30]} 43. Ng3 {[%emt 0:00:30] Hoping for d5.} Bb3 {[%emt 0:00:30]} 44. f5 {[%emt 0:00:30] d5 would kill now.} Bc2+ {[%emt 0:00:30]} 45. Kf4 {[%emt 0:00:30]} Bd1 {[%emt 0:00:30]} 46. d5 {[%emt 0:00:30]} Ke7 {[%emt 0:00:30]} 47. Ne4 {[%emt 0:00:30]} Kd7 {[%emt 0:00:30]} 48. Nc3 {[%emt 0:00:30]} Bb3 {[%emt 0:00:30]} 49. Ke5 {[%emt 0:00:30]} Ke7 {[%emt 0:00:30]} 50. f4 {[%emt 0:00:30]} Bc2 {[%emt 0:00:30]} 51. d6+ {[%emt 0:00:30]} (51. Ne4 $142 Bd1 52. f6+ gxf6+ 53. Nxf6 Kd8 54. Ke6 Bc2 55. Ng8 Bd1 56. f5) 51... Kf7 {[%emt 0:00:30]} 52. Nd5 {[%emt 0:00:30] White mates.} Ba4 {[%emt 0:00:30]} 53. f6 {[%emt 0:00:30]} gxf6+ {[%emt 0:00:30]} 54. Nxf6 {[%emt 0:00:30]} Bd1 {[%emt 0:00:30]} 55. Nd5 {[%emt 0:00:30]} Ke8 {[%emt 0:00:30]} 56. f5 {[%emt 0:00:30]} Kd8 {[%emt 0:00:30]} 57. Nf6 {[%emt 0:00:30]} Be2 {[%emt 0:00:30]} 58. Ke6 {[%emt 0:00:30]} Bc4+ {[%emt 0:00:30]} 59. Nd5 {[%emt 0:00:30]} Be2 {[%emt 0:00:30]} 60. d7 {[%emt 0:00:30]} Bxh5 {[%emt 0:00:30]} 61. Nb4 {[%emt 0:00:30]} Bf3 {[%emt 0:00:30]} 62. f6 {[%emt 0:00:30] Weighted Error Value: White=0.20 (precise) /Black=0.35} 1-0